{"text_format":"2","workbook":"xlsx","n_sheets":1,"sheets":["Munka1"],"not_rendered":{"charts":0,"images":0,"macros":0,"external_links":0,"defined_names":0,"comments":0,"pivot_tables":0},"unopened":[],"bounds":{"document_bytes":16777216,"sheet_cells":100000,"run_cost":"one","rows_first":2000,"rows_last":500,"rows_between":2000,"halvings":0,"cell_chars":16384,"cell_head_chars":4096},"cells_cut":0,"cells_raw":0,"read":"whole","date_system":"1900"}

{"sheet":"Munka1","index":0,"n_rows":15,"n_cols":9,"rows_kept":15,"cut":false,"hidden":false,"merged":[[0,2,0,6]]}
[null,null,"ZMK ideiglenes elhelyezése a volt 1. sz. Kórház épületében (Elektromos szakág)"]
["Ssz.","Munkanem","Mennyiség","Menny. Egység","Anyag (nettó Ft)","Anyag összesen(nettó Ft)","Díj (nettó Ft)","Díj összesen (nettó Ft)","Összesen (nettó Ft)"]
["1.","A helyiségekben - a szociális helyiségeket, folyosókat kivéve - lévő világítási hálózatok javítása a szükséges helyeken ( pl. neoncsere, lámpabúra csere, fojtó csere, lámpakapcsoló csere- mindenhol billenőkapcsoló legyen-,világítótestek külső, belső takarítása ). Gazdaságtalan javítási költség esetén lámpatestek cseréje új, LED-es lámpatestekre. ",1,"klt.",0,{"$f":"C3*E3","v":0},0,{"$f":"C3*G3","v":0},{"$f":"F3+H3","v":0}]
["2.","A javítás során használhatatlannak ítélt  (beégés, sérülés, vezeték szakadás miatt) vezetékek cseréje ( réz vezetékre -3x1,5mm2) ",200,"m",0,{"$f":"C4*E4","v":0},0,{"$f":"C4*G4","v":0},{"$f":"F4+H4","v":0}]
["3.","Az \" üzemen kívül\" jelzéssel ellátott konnektor hálózat megszüntetése ",1,"klt.",0,0,0,0,0]
["4.","A volt I. kórház ZMK által használni kívánt helységeiben a meglévő konnektorok javítása a szükséges helyeken ( hibaelhárítás, kb. 10 db helységben )",1,"klt.",0,0,0,0,0]
["5.","Konnektor hálózat biztosításának felülvizsgálata, szükséges helyeken a biztosítások cseréje a hatályos előírásoknak megfelelően.( 16A->13A )",1,"klt.",0,0,0,0,0]
["6.","A életvédelmi relé és túlfeszültség védelem kialakítása a szükséges helyeken. ",1,"klt.",null,0,0,0,0]
["7.","Konnektorok kiépítése az 5. és 7. termebe ( 2-es aljzatok)",7,"db",0,0,0,0,0]
["8.","Lógó, rögzítetlen vezetékek rögzítéseinek megoldása, a nem használt vezetékek szabályos visszabontása (kb. 20 db helyiségben, pontosan a helyszíni felmérés alapján).",1,"klt.",0,0,0,0,0]
["9.","10l –es vízmelegítőhöz elektromos tápellátás kialakítása ( kábelezés, leválasztó kapcsoló, kismegszakító )",6,"db",0,{"$f":"C11*E11","v":0},0,0,{"$f":"F11+H11","v":0}]
["10.","A vállalási terjedelemhez tartozó folyosókon a világítás javítása, a nem használt (szabálytalan állapotú) elektromos csatlakozások visszabontása, a mosdókban a világítás javítása",1,"klt.",0,0,0,0,0]
["11.","A vállalási terjedelemre vonatkozó irányfények elhelyezése, bekötése a menekülési útvonalakon, a kijáratok felett",1,"klt.",0,0,0,0,0]
["12.","Érintésvédelmi, megvilágítási mérések elvégzése, dokumentáció, feliratozás a munkavégzés terjedelmére.",1,"klt.",0,0,0,{"$f":"C14*G14","v":0},0]
[{"$nulls":5},{"$f":"SUM(F3:F14)","v":0},null,{"$f":"SUM(H3:H14)","v":0},0]